{"text_format":"1","workbook":"xlsx","n_sheets":2,"sheets":["3853","Sheet1"],"not_rendered":{"charts":0,"images":1,"macros":1,"external_links":0,"defined_names":2,"comments":0,"pivot_tables":0},"unopened":[],"bounds":{"document_bytes":16777216,"sheet_cells":100000,"rows_first":2000,"rows_last":500,"rows_between":2000,"halvings":0,"cell_chars":16384,"cell_head_chars":4096},"cells_cut":0,"cells_raw":0,"read":"whole","date_system":"1900"}

{"sheet":"3853","index":0,"n_rows":10,"n_cols":4,"rows_kept":10,"cut":false,"hidden":false,"merged":[[9,1,9,2],[9,3,9,16],[5,1,5,2],[5,3,5,16]]}
[]
[]
[]
[]
[]
[null,{"$f":"Sheet1!E6","v":84307.06},null,{"$f":"NumtoTxt(B6,\"ريالاً\",\"هللة لاغير\")","v":"فقط أربعة وثمانون ألف وثلاثمائة وسبعة ريالاً وستة هللة لاغير"}]
[]
[]
[]
[null,{"$f":"Sheet1!E7","v":33722.879999999997},null,{"$f":"NumtoTxt(B10,\"ريالاً\",\"هللة لاغير\")","v":"فقط ثلاثة وثلاثون ألف وسبعمائة واثنان وعشرون ريالاً وثمانية وثمانون هللة لاغير"}]

{"sheet":"Sheet1","index":1,"n_rows":111,"n_cols":20,"rows_kept":111,"cut":false,"hidden":false,"merged":[[61,0,61,3],[61,4,61,7],[62,0,62,7],[63,0,63,7],[59,0,59,3],[59,4,59,7],[64,0,64,7],[65,0,65,3],[65,4,65,7],[66,0,67,1],[66,2,67,5],[66,6,67,7],[68,0,68,1],[68,2,68,5],[68,6,68,7],[69,0,69,1],[69,2,69,5],[69,6,69,7],[70,0,70,1],[70,2,70,5],[70,6,70,7],[71,0,71,1],[71,2,71,5],[71,6,71,7],[58,2,58,5],[60,1,60,6],[19,9,19,13],[20,9,20,13],[21,9,21,13],[22,9,22,13],[23,9,23,13],[55,0,55,7],[56,0,56,7],[57,6,57,7],[57,4,57,5],[57,0,57,1],[57,2,57,3],[58,6,58,7],[58,0,58,1],[94,0,94,7],[95,0,95,7],[96,0,96,1],[96,2,96,3],[96,4,96,5],[96,6,96,7],[104,0,104,3],[104,4,104,7],[97,0,97,1],[97,6,97,7],[98,0,98,3],[98,4,98,7],[99,1,99,6],[100,0,100,3],[100,4,100,7],[101,1,101,6],[102,0,102,7],[103,0,103,7],[105,0,106,1],[105,2,106,5],[105,6,106,7],[107,0,107,1],[107,2,107,5],[107,6,107,7],[110,0,110,1],[110,2,110,5],[110,6,110,7],[108,0,108,1],[108,2,108,5],[108,6,108,7],[109,0,109,1],[109,2,109,5],[109,6,109,7]]}
[null,null,null,null,null,null,null,null,null,null,null,null,null,null,null,null,null,null,null,"الأول"]
[null,"تاريخ استحقاق اول قسط","تاريخ اليوم","القسط",null,null,null,null,"لا يتم التعديل إلا في الخلايا الملونة بالأخضر",null,null,null,null,"فكرة وتنفيذ : صادق العبدالله",null,null,null,null,null,"الثاني"]
[null,"2020-07-01",{"$f":"TODAY()","v":"2020-06-28"},1405.12,null,null,null,null,null,null,null,null,null,null,null,null,null,null,null,"الثالث"]
[null,null,null,null,null,null,null,null,null,null,null,null,null,null,null,null,null,null,null,"الرابع"]
[null,"ميعاد الإستحقاق","الأشهر","عدد الاقساط","المبلغ","السند",null,null,null,null,null,null,null,null,null,null,null,null,null,"الخامس"]
[null,"لدى الإطلاع والقيمة وصلتنا",{"$f":"IF(ROW($A1)+1<=ROUNDUP($D$6/36,0),36,IF($D$6-36*(ROW($A1)-1)<0,\"\",$D$6-36*(ROW($A1)-1)))","v":36},60,84307.06,{"$f":"IF($C6=\"\",\"\",INDEX($T$1:$T$35,ROW($A1)))","v":"الأول"},null,null,null,null,null,null,null,null,"ــ يكتب في تاريخ السند الأول تاريخ اليوم والمدينة المحرر فيه السند",null,null,null,null,"السادس"]
[null,{"$f":"IF($C7=\"\",\"\",DATE(YEAR($B$3)+3*(ROW($A2)-1),MONTH($B$3),DAY($B$3)))","v":"2023-07-01"},{"$f":"IF(D6<=36,\"\",IF(ROW($A2)+1<=ROUNDUP($D$6/36,0),36,IF($D$6-36*(ROW($A2)-1)<0,\"\",$D$6-36*(ROW($A2)-1))))","v":24},{"$f":"IF($C7=\"\",\"\",$D6-36)","v":24},{"$f":"IF($C7=\"\",\"\",$C7*$D$3)","v":33722.879999999997},{"$f":"IF($C7=\"\",\"\",INDEX($T$1:$T$35,ROW($A2)))","v":"الثاني"},null,null,null,null,null,null,null,null,"ــ يكتب في ميعاد الاستحقاق في السند الأول عبارة ( لدي الإطلاع والقيمة وصلتنا )",null,null,null,null,"السابع"]
[null,{"$f":"IF($C8=\"\",\"\",DATE(YEAR($B$3)+3*(ROW($A3)-1),MONTH($B$3),DAY($B$3)))","v":""},"",{"$f":"IF($C8=\"\",\"\",$D7-36)","v":""},{"$f":"IF($C8=\"\",\"\",$C8*$D$3)","v":""},"",null,null,null,null,null,null,null,null,"ــ يكتب في الثاني والذي بعد في تاريخ السند تاريخ اليوم والمدينة المحرر فيها السند ",null,null,null,null,"الثامن"]
[null,"","","","","",null,null,null,null,null,null,null,null,"ــ يكتب في ميعاد الإستحقاق في السند الثاني والذي بعد تاريخ ميعاد الاستحقاق الواضح في الجدول",null,null,null,null,"التاسع"]
[null,"","","","","",null,null,null,null,null,null,null,null,"ــ ادخل تاريخ استحقاق اول قسط في الصف الثالث عمود الثالث",null,null,null,null,"العاشر"]
[null,"","","","","",null,null,null,null,null,null,null,null,null,null,null,null,null,"الحادي عشر"]
[null,"","","","","",null,null,null,null,null,null,null,null,null,null,null,null,null,"الثاني عشر"]
[null,"","","","","",null,null,null,null,null,null,null,null,null,null,null,null,null,"الثالث عشر"]
[null,"","","","","",null,null,null,null,null,"ملاحظة :",null,null,null,null,null,null,null,"الرابع عشر"]
[null,"","","","","",null,null,null,null,null,"تأكد من المبلغ الإجمالي الموجود في الموافقة المبدئية ",null,null,null,null,null,null,null,"الخامس عشر"]
[null,"","","","","",null,null,null,null,null,"أكتب المبلغ الاجمالي الواضح في الموافقة ",null,null,null,null,null,null,null,"السادس عشر"]
[null,"","","","","",null,null,null,null,null,null,null,null,null,null,null,null,null,"السابع عشر"]
[null,"","","","","",null,null,null,null,null,null,null,null,null,null,null,null,null,"الثامن عشر"]
[null,"","","","","",null,null,null,null,null,null,null,null,null,null,null,null,null,"التاسع عشر"]
[null,"","","","","",null,null,null,"الشاطيء",null,null,null,null,"اسم الفرع",null,null,null,null,"العشرون"]
[null,"","","","","",null,null,null,"الدمام",null,null,null,null,"المدينة",null,null,null,null,"الحادي والعشرون"]
[null,"","","","","",null,null,null,"صبري صالح ابوحمراء",null,null,null,null,"العميل",null,null,null,null,"الثاني والعشرون"]
[null,"","","","","",null,null,null,1010101010,null,null,null,null,"رقم الهوية",null,null,null,null,"الثالث والعشرون"]
[null,"","","","","",null,null,null,"الدمام",null,null,null,null,"عنوان العميل",null,null,null,null,"الرابع والعشرون"]
[null,"","","","","",null,null,null,null,null,null,null,null,null,null,null,null,null,"الخامس والعشرون"]
[null,"","","","","",null,null,null,null,null,null,null,null,null,null,null,null,null,"السادس والعشرون"]
[null,"","","","","",null,null,null,null,null,null,null,null,null,null,null,null,null,"السابع والعشرون"]
[null,"","","","","",null,null,null,null,null,null,null,null,null,null,null,null,null,"الثامن والعشرون"]
[null,"","","","","",null,null,null,null,null,null,null,null,null,null,null,null,null,"التاسع والعشرون"]
[null,"","","","","",null,null,null,null,null,null,null,null,null,null,null,null,null,"الثلاثون"]
[null,"","","","","",null,null,null,null,null,null,null,null,null,null,null,null,null,"الحادي والثلاثون"]
[null,"","","","","",null,null,null,null,null,null,null,null,null,null,null,null,null,"الثاني والثلاثون"]
[null,"","","","","",null,null,null,null,null,null,null,null,null,null,null,null,null,"الثالث والثلاثون"]
[null,"","","","","",null,null,null,null,null,null,null,null,null,null,null,null,null,"الرابع والثلاثون"]
[null,"","","","","",null,null,null,null,null,null,null,null,null,null,null,null,null,"الخامس والثلاثون"]
[null,"","","","","",null,null,null,null,null,null,null,null,null,null,null,null,null,"السادس والثلاثون"]
[null,"","","","","",null,null,null,null,null,null,null,null,null,null,null,null,null,"السابع والثلاثون"]
[null,"","","","","",null,null,null,null,null,null,null,null,null,null,null,null,null,"الثامن والثلاثون"]
[null,"","","","","",null,null,null,null,null,null,null,null,null,null,null,null,null,"التاسع والثلاثون"]
[null,"","","","","",null,null,null,null,null,null,null,null,null,null,null,null,null,"الأربعون"]
[null,"","","","",""]
[null,"","","","",""]
[null,"","","","",""]
[null,"","","","",""]
[]
[]
[]
[]
[]
[]
[]
[]
[]
[]
[]
["سند لأمر"]
["Order Note"]
["Place and Issuance date",null,{"$f":"J21","v":"الدمام"},null,{"$f":"C3","v":"2020-06-28"},null,"تاريخ ومكان الإصدار"]
["Maturity Date",null,{"$f":"B6","v":"لدى الإطلاع والقيمة وصلتنا"},null,null,null,"ميعاد الاستحقاق"]
["I undertake to pay to the order of The Saudi British Bank",null,null,null,"أتعهد بأن ندفع لأمر البنك السعودي البريطاني"]
["At Branch",{"$f":"J20","v":"الشاطيء"},null,null,null,null,null,"في فرع"]
["On the said Maturity date the sum of:",null,null,null,"في تاريخ الاستحقاق المذكور أعلاه مبلغا وقدره:                                            "]
[{"$f":"E6","v":84307.06}]
[{"$f":"'3853'!D6","v":"فقط أربعة وثمانون ألف وثلاثمائة وسبعة ريالاً وستة هللة لاغير"}]
[]
["The holder of this note may obtain recourse without costs, notice or protest for non-payment",null,null,null,"ويحق لحامل هذا السند الرجوع بلا مصروفات ودون اخطار أو عمل احتجاج لعدم الوفاء"]
[]
[]
["Name of the Maker",null,{"$f":"J22","v":"صبري صالح ابوحمراء"},null,null,null,"اسم محرر السند"]
["ID No. / CR No.",null,{"$f":"J23","v":1010101010},null,null,null,"هوية رقم/سجل تجاري رقم"]
["Signature ",null,null,null,null,null,"توقيع محرر السند"]
["Address",null,{"$f":"J24","v":"الدمام"},null,null,null,"العنوان"]
[]
[]
[]
[]
[]
[]
[]
[]
[]
[]
[]
[]
[]
[]
[]
[]
[]
[]
[]
[]
[]
[]
["سند لأمر"]
["Order Note"]
["Place and Issuance date",null,{"$f":"J21","v":"الدمام"},null,{"$f":"C3","v":"2020-06-28"},null,"تاريخ ومكان الإصدار"]
["Maturity Date",null,null,null,{"$f":"B7","v":"2023-07-01"},null,"ميعاد الاستحقاق"]
["I undertake to pay to the order of The Saudi British Bank",null,null,null,"أتعهد بأن ندفع لأمر البنك السعودي البريطاني"]
["At Branch",{"$f":"J20","v":"الشاطيء"},null,null,null,null,null,"في فرع"]
["On the said Maturity date the sum of:",null,null,null,"في تاريخ الاستحقاق المذكور أعلاه مبلغا وقدره:                                            "]
[null,{"$f":"E7","v":33722.879999999997}]
[{"$f":"IF(E7=\"\",\"لا يحتاج سند آخر\",'3853'!D10)","v":"فقط ثلاثة وثلاثون ألف وسبعمائة واثنان وعشرون ريالاً وثمانية وثمانون هللة لاغير"}]
[]
["The holder of this note may obtain recourse without costs, notice or protest for non-payment",null,null,null,"ويحق لحامل هذا السند الرجوع بلا مصروفات ودون اخطار أو عمل احتجاج لعدم الوفاء"]
[]
[]
["Name of the Maker",null,{"$f":"J22","v":"صبري صالح ابوحمراء"},null,null,null,"اسم محرر السند"]
["ID No. / CR No.",null,{"$f":"J23","v":1010101010},null,null,null,"هوية رقم/سجل تجاري رقم"]
["Signature ",null,null,null,null,null,"توقيع محرر السند"]
["Address",null,{"$f":"J24","v":"الدمام"},null,null,null,"العنوان"]